[Event "Titled Tuesday Blitz October 31 Early 2023"]
[White "Prestia, Paris"]
[Black "Csonka, Balazs"]
[WhiteFideId "30925959"]
[BlackFideId "742910"]
[WhiteElo "2626"]
[BlackElo "2730"]
[Result "0-1"]
[Round "10"]
[TimeControl "180+1"]
[Date "2023.10.31"]
[WhiteClock "0:00:07"]
[BlackClock "0:00:06"]
[Board "39"]

1. d4 {[%clk 0:03:00]}  d5 {[%clk 0:02:59]} 2. c4 {[%clk 0:03:01]}  e5 {[%clk 0:03:00]} 3. dxe5 {[%clk 0:03:01]}  Ne7 {[%clk 0:03:00]} 4. Nf3 {[%clk 0:03:02]}  Nbc6 {[%clk 0:02:58]} 5. a3 {[%clk 0:03:00]}  dxc4 {[%clk 0:02:48]} 6. Qxd8+ {[%clk 0:03:00]}  Nxd8 {[%clk 0:02:49]} 7. Nbd2 {[%clk 0:02:55]}  b5 {[%clk 0:02:48]} 8. a4 {[%clk 0:02:51]}  c6 {[%clk 0:02:42]} 9. g3 {[%clk 0:02:48]}  Bb7 {[%clk 0:02:34]} 10. Bg2 {[%clk 0:02:47]}  a6 {[%clk 0:02:27]} 11. Nd4 {[%clk 0:02:40]}  Ne6 {[%clk 0:02:08]} 12. Nxe6 {[%clk 0:02:40]}  fxe6 {[%clk 0:02:08]} 13. Ne4 {[%clk 0:02:30]}  Nd5 {[%clk 0:02:06]} 14. O-O {[%clk 0:02:18]}  h6 {[%clk 0:01:44]} 15. Rd1 {[%clk 0:02:11]}  Bb4 {[%clk 0:01:35]} 16. Bd2 {[%clk 0:02:11]}  Be7 {[%clk 0:01:33]} 17. Nd6+ {[%clk 0:02:11]}  Bxd6 {[%clk 0:01:33]} 18. exd6 {[%clk 0:02:12]}  Kd7 {[%clk 0:01:30]} 19. e4 {[%clk 0:02:13]}  Nf6 {[%clk 0:01:30]} 20. Ba5 {[%clk 0:01:52]}  c5 {[%clk 0:01:25]} 21. f3 {[%clk 0:01:50]}  Bc6 {[%clk 0:01:21]} 22. Bb6 {[%clk 0:01:49]}  Rhc8 {[%clk 0:01:03]} 23. axb5 {[%clk 0:01:09]}  axb5 {[%clk 0:00:50]} 24. Bxc5 {[%clk 0:01:09]}  Bxe4 {[%clk 0:00:48]} 25. fxe4 {[%clk 0:01:07]}  Rxa1 {[%clk 0:00:48]} 26. Rxa1 {[%clk 0:01:07]}  Rxc5 {[%clk 0:00:48]} 27. Ra7+ {[%clk 0:01:04]}  Kxd6 {[%clk 0:00:48]} 28. Rxg7 {[%clk 0:01:05]}  b4 {[%clk 0:00:43]} 29. Ra7 {[%clk 0:00:57]}  c3 {[%clk 0:00:37]} 30. bxc3 {[%clk 0:00:58]}  bxc3 {[%clk 0:00:37]} 31. Ra1 {[%clk 0:00:59]}  Ke5 {[%clk 0:00:38]} 32. Kf2 {[%clk 0:00:52]}  Nxe4+ {[%clk 0:00:22]} 33. Ke3 {[%clk 0:00:52]}  Nd2 {[%clk 0:00:15]} 34. Rc1 {[%clk 0:00:49]}  Nb3 {[%clk 0:00:14]} 35. Rc2 {[%clk 0:00:48]}  Nd4 {[%clk 0:00:13]} 36. Rc1 {[%clk 0:00:46]}  c2 {[%clk 0:00:14]} 37. Kd3 {[%clk 0:00:47]}  Rc7 {[%clk 0:00:07]} 38. Re1+ {[%clk 0:00:40]}  Kd6 {[%clk 0:00:05]} 39. Rc1 {[%clk 0:00:38]}  e5 {[%clk 0:00:06]} 40. Be4 {[%clk 0:00:37]}  Ra7 {[%clk 0:00:05]} 41. Ke3 {[%clk 0:00:18]}  Ra3+ {[%clk 0:00:05]} 42. Kf2 {[%clk 0:00:19]}  Ra2 {[%clk 0:00:05]} 43. Ke3 {[%clk 0:00:18]}  Kc5 {[%clk 0:00:05]} 44. Bd3 {[%clk 0:00:18]}  Kb4 {[%clk 0:00:05]} 45. Bg6 {[%clk 0:00:05]}  Kc3 {[%clk 0:00:05]} 46. Be4 {[%clk 0:00:05]}  Rb2 {[%clk 0:00:04]} 47. Re1 {[%clk 0:00:01]}  Ra2 {[%clk 0:00:04]} 48. Bxc2 {[%clk 0:00:01]}  Rxc2 {[%clk 0:00:04]} 49. Ke4 {[%clk 0:00:01]}  Rxh2 {[%clk 0:00:04]} 50. Kxe5 {[%clk 0:00:02]}  Nf3+ {[%clk 0:00:02]} 51. Kf4 {[%clk 0:00:02]}  Nxe1 {[%clk 0:00:03]} 52. g4 {[%clk 0:00:03]}  Rg2 {[%clk 0:00:04]} 53. Kf5 {[%clk 0:00:04]}  Kd3 {[%clk 0:00:04]} 54. Kg6 {[%clk 0:00:04]}  Ke3 {[%clk 0:00:04]} 55. Kxh6 {[%clk 0:00:05]}  Kf4 {[%clk 0:00:05]} 56. Kh7 {[%clk 0:00:06]}  Rxg4 {[%clk 0:00:05]} 57. Kh8 {[%clk 0:00:07]}  Kf5 {[%clk 0:00:05]} 58. Kh7 {[%clk 0:00:07]}  Kf6 {[%clk 0:00:06]} 0-1


[Site "https://www.chess.com"]

[Event "Titled Tuesday Blitz October 31 Early 2023"]
[White "Barrientos, Sergio E"]
[Black "JuniorJumper"]
[WhiteFideId "4401824"]
[WhiteElo "2698"]
[BlackElo "2616"]
[Result "0-1"]
[Round "10"]
[TimeControl "180+1"]
[Date "2023.10.31"]
[WhiteClock "0:01:40"]
[BlackClock "0:01:31"]
[Board "41"]

1. e4 {[%clk 0:03:00]}  e5 {[%clk 0:02:59]} 2. Nf3 {[%clk 0:02:59]}  Nc6 {[%clk 0:03:00]} 3. Bb5 {[%clk 0:02:56]}  Nf6 {[%clk 0:02:59]} 4. d3 {[%clk 0:02:53]}  Bc5 {[%clk 0:03:00]} 5. Bxc6 {[%clk 0:02:47]}  dxc6 {[%clk 0:02:57]} 6. h3 {[%clk 0:02:47]}  Bd6 {[%clk 0:02:56]} 7. Qe2 {[%clk 0:02:46]}  O-O {[%clk 0:02:55]} 8. Nbd2 {[%clk 0:02:44]}  Be6 {[%clk 0:02:54]} 9. Nf1 {[%clk 0:02:43]}  Nd7 {[%clk 0:02:55]} 10. Ne3 {[%clk 0:02:42]}  f6 {[%clk 0:02:55]} 11. Bd2 {[%clk 0:02:41]}  Qe7 {[%clk 0:02:55]} 12. Nh4 {[%clk 0:02:41]}  g6 {[%clk 0:02:54]} 13. g3 {[%clk 0:02:36]}  a5 {[%clk 0:02:50]} 14. Nc4 {[%clk 0:02:28]}  Bxc4 {[%clk 0:02:46]} 15. dxc4 {[%clk 0:02:28]}  a4 {[%clk 0:02:43]} 16. a3 {[%clk 0:02:27]}  Nc5 {[%clk 0:02:39]} 17. Be3 {[%clk 0:02:20]}  Ne6 {[%clk 0:02:38]} 18. Nf3 {[%clk 0:02:13]}  Bc5 {[%clk 0:02:36]} 19. O-O-O {[%clk 0:02:13]}  Ra6 {[%clk 0:01:57]} 20. h4 {[%clk 0:02:11]}  Bxa3 {[%clk 0:01:36]} 21. bxa3 {[%clk 0:02:10]}  Qxa3+ {[%clk 0:01:37]} 22. Kb1 {[%clk 0:01:40]}  c5 {[%clk 0:01:31]} 0-1


[Site "https://www.chess.com"]

[Event "Titled Tuesday Blitz October 31 Early 2023"]
[White "El_Matador12"]
[Black "Zhigalko, Sergei"]
[BlackFideId "13502956"]
[WhiteElo "2548"]
[BlackElo "2921"]
[Result "1/2-1/2"]
[Round "10"]
[TimeControl "180+1"]
[Date "2023.10.31"]
[WhiteClock "0:00:07"]
[BlackClock "0:00:02"]
[Board "45"]

1. d4 {[%clk 0:02:55]}  Nf6 {[%clk 0:02:59]} 2. Bg5 {[%clk 0:02:54]}  d5 {[%clk 0:02:59]} 3. Bxf6 {[%clk 0:02:54]}  exf6 {[%clk 0:02:59]} 4. e3 {[%clk 0:02:55]}  Bd6 {[%clk 0:03:00]} 5. g3 {[%clk 0:02:55]}  O-O {[%clk 0:03:00]} 6. Bg2 {[%clk 0:02:55]}  c6 {[%clk 0:03:00]} 7. Ne2 {[%clk 0:02:55]}  Nd7 {[%clk 0:03:00]} 8. O-O {[%clk 0:02:54]}  f5 {[%clk 0:03:00]} 9. b3 {[%clk 0:02:53]}  Nf6 {[%clk 0:03:00]} 10. c4 {[%clk 0:02:53]}  Be6 {[%clk 0:02:58]} 11. Qd3 {[%clk 0:02:52]}  Re8 {[%clk 0:02:52]} 12. Nbc3 {[%clk 0:02:52]}  Ne4 {[%clk 0:02:53]} 13. c5 {[%clk 0:02:51]}  Bc7 {[%clk 0:02:52]} 14. b4 {[%clk 0:02:52]}  b5 {[%clk 0:02:19]} 15. cxb6 {[%clk 0:02:41]}  axb6 {[%clk 0:02:19]} 16. a4 {[%clk 0:02:41]}  Qd6 {[%clk 0:01:54]} 17. Rfb1 {[%clk 0:02:39]}  Red8 {[%clk 0:01:49]} 18. Ra2 {[%clk 0:02:23]}  g6 {[%clk 0:01:48]} 19. Rc2 {[%clk 0:02:22]}  Rac8 {[%clk 0:01:36]} 20. Qd1 {[%clk 0:02:01]}  Qe7 {[%clk 0:01:28]} 21. Qc1 {[%clk 0:01:54]}  Bd6 {[%clk 0:01:15]} 22. Nxe4 {[%clk 0:01:45]}  dxe4 {[%clk 0:01:04]} 23. Rxc6 {[%clk 0:01:33]}  Bxb4 {[%clk 0:01:03]} 24. Nf4 {[%clk 0:01:17]}  Bd2 {[%clk 0:00:16]} 25. Qc2 {[%clk 0:01:01]}  Rxc6 {[%clk 0:00:15]} 26. Qxc6 {[%clk 0:01:00]}  Ba5 {[%clk 0:00:07]} 27. Nxe6 {[%clk 0:00:34]}  Qxe6 {[%clk 0:00:08]} 28. Rc1 {[%clk 0:00:24]}  Kg7 {[%clk 0:00:04]} 29. Bf1 {[%clk 0:00:24]}  h5 {[%clk 0:00:04]} 30. Bb5 {[%clk 0:00:14]}  Rd6 {[%clk 0:00:04]} 31. Qc8 {[%clk 0:00:12]}  Qe7 {[%clk 0:00:02]} 32. Rc7 {[%clk 0:00:12]}  Qd8 {[%clk 0:00:01]} 33. Qb7 {[%clk 0:00:11]}  Rf6 {[%clk 0:00:01]} 34. Bc4 {[%clk 0:00:12]}  Qe8 {[%clk 0:00:01]} 35. Re7 {[%clk 0:00:11]}  Qf8 {[%clk 0:00:02]} 36. d5 {[%clk 0:00:10]}  h4 {[%clk 0:00:02]} 37. d6 {[%clk 0:00:10]}  Bb4 {[%clk 0:00:03]} 38. Rd7 {[%clk 0:00:04]}  Bxd6 {[%clk 0:00:04]} 39. Kg2 {[%clk 0:00:02]}  hxg3 {[%clk 0:00:04]} 40. hxg3 {[%clk 0:00:02]}  Bc5 {[%clk 0:00:04]} 41. Qd5 {[%clk 0:00:02]}  Bb4 {[%clk 0:00:03]} 42. Qb7 {[%clk 0:00:02]}  Qe8 {[%clk 0:00:03]} 43. Qd5 {[%clk 0:00:02]}  Bf8 {[%clk 0:00:03]} 44. Qb7 {[%clk 0:00:02]}  Bc5 {[%clk 0:00:02]} 45. Bb5 {[%clk 0:00:02]}  Qf8 {[%clk 0:00:02]} 46. Bc4 {[%clk 0:00:03]}  g5 {[%clk 0:00:02]} 47. Bb5 {[%clk 0:00:03]}  Kg6 {[%clk 0:00:02]} 48. Bc4 {[%clk 0:00:03]}  Qe8 {[%clk 0:00:03]} 49. g4 {[%clk 0:00:03]}  fxg4 {[%clk 0:00:01]} 50. Bd5 {[%clk 0:00:04]}  Kg7 {[%clk 0:00:02]} 51. Bxe4 {[%clk 0:00:04]}  g3 {[%clk 0:00:02]} 52. Kxg3 {[%clk 0:00:04]}  Qe5+ {[%clk 0:00:03]} 53. Kg2 {[%clk 0:00:04]}  Qe6 {[%clk 0:00:04]} 54. Bd5 {[%clk 0:00:05]}  Qg4+ {[%clk 0:00:04]} 55. Kf1 {[%clk 0:00:05]}  Qd1+ {[%clk 0:00:04]} 56. Kg2 {[%clk 0:00:05]}  Qg4+ {[%clk 0:00:04]} 57. Kf1 {[%clk 0:00:06]}  Qf5 {[%clk 0:00:05]} 58. f3 {[%clk 0:00:05]}  Qd3+ {[%clk 0:00:04]} 59. Kg2 {[%clk 0:00:05]}  Qe2+ {[%clk 0:00:04]} 60. Kg3 {[%clk 0:00:05]}  Qe1+ {[%clk 0:00:04]} 61. Kg2 {[%clk 0:00:06]}  Qd2+ {[%clk 0:00:04]} 62. Kg3 {[%clk 0:00:06]}  Qe1+ {[%clk 0:00:04]} 63. Kg2 {[%clk 0:00:06]}  Qe2+ {[%clk 0:00:03]} 64. Kg3 {[%clk 0:00:07]}  Bd6+ {[%clk 0:00:02]} 65. Rxd6 {[%clk 0:00:07]}  Qe1+ {[%clk 0:00:02]} 66. Kg2 {[%clk 0:00:06]}  Qe2+ {[%clk 0:00:03]} 67. Kg3 {[%clk 0:00:07]}  Qe1+ {[%clk 0:00:02]} 68. Kg2 {[%clk 0:00:07]}  Qe2+ {[%clk 0:00:02]} 69. Kg3 {[%clk 0:00:07]} 1/2-1/2


[Site "https://www.chess.com"]

[Event "Titled Tuesday Blitz October 31 Early 2023"]
[White "brm72"]
[Black "Hayrapetyan, Hovik"]
[BlackFideId "13302639"]
[WhiteElo "2581"]
[BlackElo "2768"]
[Result "0-1"]
[Round "10"]
[TimeControl "180+1"]
[Date "2023.10.31"]
[WhiteClock "0:00:09"]
[BlackClock "0:00:53"]
[Board "46"]

1. e4 {[%clk 0:03:00]}  c5 {[%clk 0:02:59]} 2. Nf3 {[%clk 0:03:00]}  d6 {[%clk 0:03:00]} 3. d4 {[%clk 0:03:00]}  cxd4 {[%clk 0:03:01]} 4. Nxd4 {[%clk 0:03:00]}  Nf6 {[%clk 0:03:01]} 5. Nc3 {[%clk 0:03:01]}  a6 {[%clk 0:03:02]} 6. Be2 {[%clk 0:03:02]}  e5 {[%clk 0:03:01]} 7. Nb3 {[%clk 0:03:02]}  Be7 {[%clk 0:03:02]} 8. O-O {[%clk 0:03:00]}  O-O {[%clk 0:03:02]} 9. Re1 {[%clk 0:02:59]}  Be6 {[%clk 0:03:01]} 10. Bf3 {[%clk 0:03:00]}  Nbd7 {[%clk 0:02:59]} 11. a4 {[%clk 0:03:00]}  Qc7 {[%clk 0:02:58]} 12. a5 {[%clk 0:02:59]}  Rfb8 {[%clk 0:02:58]} 13. Be3 {[%clk 0:02:55]}  b5 {[%clk 0:02:54]} 14. axb6 {[%clk 0:02:43]}  Nxb6 {[%clk 0:02:51]} 15. Nd2 {[%clk 0:02:44]}  Nc4 {[%clk 0:02:34]} 16. Nxc4 {[%clk 0:02:29]}  Qxc4 {[%clk 0:02:35]} 17. Bc1 {[%clk 0:02:03]}  a5 {[%clk 0:02:26]} 18. Re3 {[%clk 0:01:59]}  a4 {[%clk 0:02:24]} 19. Be2 {[%clk 0:01:54]}  Qc5 {[%clk 0:02:21]} 20. Rg3 {[%clk 0:01:45]}  a3 {[%clk 0:02:19]} 21. Rxa3 {[%clk 0:01:38]}  Rxa3 {[%clk 0:02:17]} 22. bxa3 {[%clk 0:01:39]}  h5 {[%clk 0:02:16]} 23. a4 {[%clk 0:01:15]}  h4 {[%clk 0:02:11]} 24. Re3 {[%clk 0:01:14]}  h3 {[%clk 0:02:07]} 25. g3 {[%clk 0:01:09]}  Bd8 {[%clk 0:01:54]} 26. Nb5 {[%clk 0:01:03]}  Bb6 {[%clk 0:01:47]} 27. Ba3 {[%clk 0:00:58]}  Qc6 {[%clk 0:01:46]} 28. Rd3 {[%clk 0:00:53]}  Nxe4 {[%clk 0:01:44]} 29. Bf3 {[%clk 0:00:52]}  Bxf2+ {[%clk 0:01:32]} 30. Kh1 {[%clk 0:00:51]}  Bg4 {[%clk 0:01:25]} 31. Qe2 {[%clk 0:00:40]}  Bxf3+ {[%clk 0:01:12]} 32. Qxf3 {[%clk 0:00:40]}  Qxc2 {[%clk 0:01:11]} 33. Rd1 {[%clk 0:00:32]}  Qxa4 {[%clk 0:01:05]} 34. Nxd6 {[%clk 0:00:24]}  Nxd6 {[%clk 0:01:01]} 35. Bxd6 {[%clk 0:00:24]}  e4 {[%clk 0:01:00]} 36. Qe2 {[%clk 0:00:20]}  Rb2 {[%clk 0:00:58]} 37. Qh5 {[%clk 0:00:14]}  e3 {[%clk 0:00:53]} 38. Ba3 {[%clk 0:00:09]}  Qe4+ {[%clk 0:00:53]} 0-1


[Site "https://www.chess.com"]

[Event "Titled Tuesday Blitz October 31 Early 2023"]
[White "Weetik, Vjacheslav"]
[Black "Kiremitciyan, Ari"]
[WhiteFideId "4153472"]
[BlackFideId "6373445"]
[WhiteElo "2725"]
[BlackElo "2568"]
[Result "1-0"]
[Round "10"]
[TimeControl "180+1"]
[Date "2023.10.31"]
[WhiteClock "0:01:17"]
[BlackClock "0:00:00"]
[Board "49"]

1. e4 {[%clk 0:02:59]}  g6 {[%clk 0:02:57]} 2. d4 {[%clk 0:02:59]}  Bg7 {[%clk 0:02:58]} 3. Nf3 {[%clk 0:03:00]}  d6 {[%clk 0:02:58]} 4. Bc4 {[%clk 0:03:00]}  e6 {[%clk 0:02:57]} 5. O-O {[%clk 0:03:00]}  Ne7 {[%clk 0:02:57]} 6. Re1 {[%clk 0:03:00]}  d5 {[%clk 0:02:54]} 7. Bd3 {[%clk 0:02:59]}  dxe4 {[%clk 0:02:54]} 8. Bxe4 {[%clk 0:03:00]}  O-O {[%clk 0:02:54]} 9. c3 {[%clk 0:02:58]}  Nd7 {[%clk 0:02:54]} 10. Qe2 {[%clk 0:02:46]}  Nf6 {[%clk 0:02:54]} 11. Bc2 {[%clk 0:02:46]}  b6 {[%clk 0:02:53]} 12. a4 {[%clk 0:02:43]}  a5 {[%clk 0:02:52]} 13. Na3 {[%clk 0:02:43]}  Bb7 {[%clk 0:02:46]} 14. Nb5 {[%clk 0:02:43]}  Nf5 {[%clk 0:02:37]} 15. h3 {[%clk 0:02:39]}  Nd6 {[%clk 0:02:37]} 16. Bf4 {[%clk 0:02:37]}  Nxb5 {[%clk 0:02:37]} 17. axb5 {[%clk 0:02:36]}  c6 {[%clk 0:02:23]} 18. bxc6 {[%clk 0:02:31]}  Bxc6 {[%clk 0:02:24]} 19. Ne5 {[%clk 0:02:32]}  Bb7 {[%clk 0:02:19]} 20. Bg5 {[%clk 0:02:29]}  Qc7 {[%clk 0:02:15]} 21. Bh4 {[%clk 0:02:18]}  Nd5 {[%clk 0:02:08]} 22. Bg3 {[%clk 0:02:15]}  Qe7 {[%clk 0:01:59]} 23. Bb3 {[%clk 0:02:09]}  Rfd8 {[%clk 0:01:51]} 24. Qb5 {[%clk 0:01:57]}  Ba6 {[%clk 0:01:44]} 25. Qa4 {[%clk 0:01:57]}  Bb7 {[%clk 0:01:02]} 26. Nc6 {[%clk 0:01:53]}  Bxc6 {[%clk 0:01:02]} 27. Qxc6 {[%clk 0:01:54]}  Rac8 {[%clk 0:00:52]} 28. Qb5 {[%clk 0:01:52]}  Qd7 {[%clk 0:00:49]} 29. Qe2 {[%clk 0:01:39]}  Ra8 {[%clk 0:00:45]} 30. Ba4 {[%clk 0:01:39]}  Qb7 {[%clk 0:00:39]} 31. Bb5 {[%clk 0:01:39]}  Nc7 {[%clk 0:00:37]} 32. Bd3 {[%clk 0:01:38]}  a4 {[%clk 0:00:29]} 33. Be4 {[%clk 0:01:37]}  Qa7 {[%clk 0:00:14]} 34. Bxa8 {[%clk 0:01:32]}  Nxa8 {[%clk 0:00:13]} 35. Qc4 {[%clk 0:01:28]}  Qb7 {[%clk 0:00:09]} 36. Qxa4 {[%clk 0:01:25]}  b5 {[%clk 0:00:09]} 37. Qa6 {[%clk 0:01:22]}  Qd5 {[%clk 0:00:00]} 38. Ra5 {[%clk 0:01:17]} 1-0


[Site "https://www.chess.com"]

[Event "Titled Tuesday Blitz October 31 Early 2023"]
[White "NovoselovRoman"]
[Black "Hua, Lefong"]
[BlackFideId "2602253"]
[WhiteElo "2548"]
[BlackElo "2716"]
[Result "1-0"]
[Round "10"]
[TimeControl "180+1"]
[Date "2023.10.31"]
[WhiteClock "0:01:44"]
[BlackClock "0:01:39"]
[Board "50"]

1. d4 {[%clk 0:02:57]}  Nf6 {[%clk 0:02:59]} 2. c4 {[%clk 0:02:55]}  c5 {[%clk 0:02:59]} 3. e3 {[%clk 0:02:53]}  g6 {[%clk 0:02:59]} 4. Nc3 {[%clk 0:02:53]}  Bg7 {[%clk 0:03:00]} 5. Nf3 {[%clk 0:02:54]}  O-O {[%clk 0:03:00]} 6. Be2 {[%clk 0:02:53]}  cxd4 {[%clk 0:03:01]} 7. exd4 {[%clk 0:02:54]}  d5 {[%clk 0:03:02]} 8. c5 {[%clk 0:02:54]}  Nc6 {[%clk 0:03:01]} 9. Bf4 {[%clk 0:02:54]}  Ne4 {[%clk 0:02:58]} 10. O-O {[%clk 0:02:37]}  Bg4 {[%clk 0:02:57]} 11. Be3 {[%clk 0:02:36]}  Be6 {[%clk 0:02:51]} 12. Nxe4 {[%clk 0:02:23]}  dxe4 {[%clk 0:02:51]} 13. Ng5 {[%clk 0:02:24]}  Nxd4 {[%clk 0:02:44]} 14. Bxd4 {[%clk 0:02:12]}  Qxd4 {[%clk 0:02:45]} 15. Nxe6 {[%clk 0:02:12]}  fxe6 {[%clk 0:02:44]} 16. Qb3 {[%clk 0:02:10]}  Qxb2 {[%clk 0:02:36]} 17. Qxe6+ {[%clk 0:02:10]}  Kh8 {[%clk 0:02:36]} 18. Qxe4 {[%clk 0:02:04]}  Qxa1 {[%clk 0:02:30]} 19. Rxa1 {[%clk 0:02:05]}  Bxa1 {[%clk 0:02:30]} 20. h4 {[%clk 0:02:03]}  e5 {[%clk 0:02:25]} 21. h5 {[%clk 0:02:01]}  Bd4 {[%clk 0:02:23]} 22. Bf3 {[%clk 0:02:01]}  gxh5 {[%clk 0:02:14]} 23. Qxb7 {[%clk 0:01:51]}  Bxc5 {[%clk 0:02:14]} 24. Be4 {[%clk 0:01:47]}  Bxf2+ {[%clk 0:01:39]} 25. Kh1 {[%clk 0:01:44]} 1-0


[Site "https://www.chess.com"]

[Event "Titled Tuesday Blitz October 31 Early 2023"]
[White "Tikhonov, Viacheslav"]
[Black "Ovetchkin, Roman"]
[WhiteFideId "44196407"]
[BlackFideId "4119991"]
[WhiteElo "2509"]
[BlackElo "2689"]
[Result "0-1"]
[Round "10"]
[TimeControl "180+1"]
[Date "2023.10.31"]
[WhiteClock "0:00:00"]
[BlackClock "0:00:22"]
[Board "54"]

1. e4 {[%clk 0:03:00]}  c6 {[%clk 0:02:59]} 2. d4 {[%clk 0:03:00]}  d5 {[%clk 0:02:59]} 3. Nc3 {[%clk 0:03:01]}  dxe4 {[%clk 0:02:59]} 4. Nxe4 {[%clk 0:03:02]}  Nf6 {[%clk 0:03:00]} 5. Nxf6+ {[%clk 0:03:02]}  exf6 {[%clk 0:03:01]} 6. Bc4 {[%clk 0:03:02]}  Bd6 {[%clk 0:03:00]} 7. Qe2+ {[%clk 0:03:02]}  Kf8 {[%clk 0:03:00]} 8. Be3 {[%clk 0:02:58]}  h5 {[%clk 0:02:59]} 9. Nf3 {[%clk 0:02:56]}  Na6 {[%clk 0:02:55]} 10. c3 {[%clk 0:02:48]}  Nc7 {[%clk 0:02:55]} 11. Qd2 {[%clk 0:02:44]}  Bg4 {[%clk 0:02:31]} 12. O-O-O {[%clk 0:02:18]}  b5 {[%clk 0:02:27]} 13. Bd3 {[%clk 0:02:14]}  Nd5 {[%clk 0:02:23]} 14. h3 {[%clk 0:02:00]}  Be6 {[%clk 0:02:22]} 15. Kb1 {[%clk 0:01:58]}  Rb8 {[%clk 0:02:16]} 16. Rhe1 {[%clk 0:01:55]}  b4 {[%clk 0:02:08]} 17. c4 {[%clk 0:01:54]}  Nc3+ {[%clk 0:02:07]} 18. Ka1 {[%clk 0:01:49]}  Nxa2 {[%clk 0:01:38]} 19. Kxa2 {[%clk 0:01:41]}  b3+ {[%clk 0:01:38]} 20. Kb1 {[%clk 0:01:26]}  Bb4 {[%clk 0:01:39]} 21. Qe2 {[%clk 0:01:19]}  Qa5 {[%clk 0:01:38]} 22. Nd2 {[%clk 0:00:30]}  Bc3 {[%clk 0:01:15]} 23. Ne4 {[%clk 0:00:22]}  Bxe1 {[%clk 0:01:02]} 24. Qxe1 {[%clk 0:00:22]}  Qa2+ {[%clk 0:01:01]} 25. Kc1 {[%clk 0:00:23]}  Bf5 {[%clk 0:01:01]} 26. f3 {[%clk 0:00:22]}  h4 {[%clk 0:00:59]} 27. Bb1 {[%clk 0:00:18]}  Qa6 {[%clk 0:00:58]} 28. Qc3 {[%clk 0:00:18]}  Be6 {[%clk 0:00:50]} 29. Bf4 {[%clk 0:00:13]}  Rd8 {[%clk 0:00:45]} 30. Nc5 {[%clk 0:00:07]}  Qxc4 {[%clk 0:00:44]} 31. Qxc4 {[%clk 0:00:06]}  Bxc4 {[%clk 0:00:45]} 32. Bd3 {[%clk 0:00:05]}  Bd5 {[%clk 0:00:44]} 33. Be4 {[%clk 0:00:04]}  g5 {[%clk 0:00:44]} 34. Be3 {[%clk 0:00:03]}  Kg7 {[%clk 0:00:37]} 35. Bxd5 {[%clk 0:00:03]}  cxd5 {[%clk 0:00:35]} 36. Rd3 {[%clk 0:00:04]}  Rhe8 {[%clk 0:00:33]} 37. Rxb3 {[%clk 0:00:04]}  Re7 {[%clk 0:00:32]} 38. Kd2 {[%clk 0:00:04]}  Rde8 {[%clk 0:00:29]} 39. Rc3 {[%clk 0:00:04]}  Kg6 {[%clk 0:00:28]} 40. b4 {[%clk 0:00:05]}  f5 {[%clk 0:00:28]} 41. Nd3 {[%clk 0:00:02]}  f4 {[%clk 0:00:28]} 42. Ne5+ {[%clk 0:00:01]}  Kf5 {[%clk 0:00:22]} 43. Bg1 {[%clk 0:00:00]}  f6 {[%clk 0:00:22]} 0-1


[Site "https://www.chess.com"]

[Event "Titled Tuesday Blitz October 31 Early 2023"]
[White "LouieKov2022"]
[Black "Yen, William"]
[BlackFideId "30932025"]
[WhiteElo "2493"]
[BlackElo "2672"]
[Result "0-1"]
[Round "10"]
[TimeControl "180+1"]
[Date "2023.10.31"]
[WhiteClock "0:00:14"]
[BlackClock "0:00:14"]
[Board "56"]

1. e4 {[%clk 0:02:57]}  c5 {[%clk 0:02:59]} 2. Nf3 {[%clk 0:02:57]}  d6 {[%clk 0:02:59]} 3. d4 {[%clk 0:02:57]}  cxd4 {[%clk 0:03:00]} 4. Nxd4 {[%clk 0:02:58]}  Nf6 {[%clk 0:03:00]} 5. Nc3 {[%clk 0:02:59]}  a6 {[%clk 0:02:59]} 6. f3 {[%clk 0:02:58]}  e5 {[%clk 0:02:57]} 7. Nb3 {[%clk 0:02:57]}  Be6 {[%clk 0:02:54]} 8. Be3 {[%clk 0:02:58]}  Be7 {[%clk 0:02:52]} 9. Qd2 {[%clk 0:02:58]}  h5 {[%clk 0:02:50]} 10. O-O-O {[%clk 0:02:57]}  Nbd7 {[%clk 0:02:48]} 11. Kb1 {[%clk 0:02:56]}  b5 {[%clk 0:02:45]} 12. Nd5 {[%clk 0:02:43]}  Bxd5 {[%clk 0:02:43]} 13. exd5 {[%clk 0:02:44]}  Nb6 {[%clk 0:02:44]} 14. Bxb6 {[%clk 0:02:45]}  Qxb6 {[%clk 0:02:43]} 15. Na5 {[%clk 0:02:45]}  Bd8 {[%clk 0:02:35]} 16. Nc6 {[%clk 0:02:44]}  O-O {[%clk 0:02:30]} 17. c4 {[%clk 0:02:42]}  bxc4 {[%clk 0:02:27]} 18. Bxc4 {[%clk 0:02:41]}  g6 {[%clk 0:02:26]} 19. Rc1 {[%clk 0:02:35]}  a5 {[%clk 0:02:17]} 20. Rc3 {[%clk 0:02:07]}  a4 {[%clk 0:02:09]} 21. Ra3 {[%clk 0:02:06]}  Kg7 {[%clk 0:02:02]} 22. Rc1 {[%clk 0:02:06]}  Nd7 {[%clk 0:01:58]} 23. Qb4 {[%clk 0:02:04]}  Nc5 {[%clk 0:01:53]} 24. Bb5 {[%clk 0:01:45]}  Bg5 {[%clk 0:01:33]} 25. Rc4 {[%clk 0:01:38]}  Rfb8 {[%clk 0:00:47]} 26. Bxa4 {[%clk 0:00:38]}  Qxb4 {[%clk 0:00:43]} 27. Nxb4 {[%clk 0:00:39]}  Nxa4 {[%clk 0:00:41]} 28. Nc6 {[%clk 0:00:39]}  Rxb2+ {[%clk 0:00:34]} 29. Ka1 {[%clk 0:00:39]}  Rxg2 {[%clk 0:00:29]} 30. Raxa4 {[%clk 0:00:36]}  Rxa4 {[%clk 0:00:26]} 31. Rxa4 {[%clk 0:00:37]}  Rxh2 {[%clk 0:00:23]} 32. Rc4 {[%clk 0:00:29]}  h4 {[%clk 0:00:22]} 33. a4 {[%clk 0:00:28]}  h3 {[%clk 0:00:20]} 34. a5 {[%clk 0:00:28]}  Rg2 {[%clk 0:00:16]} 35. a6 {[%clk 0:00:14]}  h2 {[%clk 0:00:14]} 0-1


[Site "https://www.chess.com"]